[Event "Fall GM-C Norm Invitational 2022"]
[Site "Charlotte"]
[Date "2022.11.21"]
[Round "7"]
[White "Sethuraman, Sandeep"]
[Black "Escobar Forero, Alder"]
[Result "1/2-1/2"]
[ECO "D36"]
[WhiteElo "2371"]
[BlackElo "2510"]
[Annotator "TA"]
[PlyCount "135"]
[EventDate "2022.11.18"]
[EventType "tourn"]
[EventCountry "USA"]
[SourceTitle "playchess.com"]
[Source "ChessBase"]
[SourceQuality "1"]
[TimeControl "5400+30"]

{[%evp 12,135,27,20,21,10,20,15,54,40,51,49,77,67,87,100,101,84,77,74,95,98,100,90,87,92,96,90,100,91,87,81,84,83,96,83,108,107,120,120,148,116,158,129,231,231,401,173,139,104,104,104,104,104,152,150,218,125,243,269,246,236,247,132,132,135,173,173,174,34,87,92,83,83,90,0,90,90,100,95,111,0,0,0,112,98,114,21,21,20,25,30,49,0,0,0,49,49,48,0,0,0,0,0,0,0,0,0,0,0,0,0,0,0,0,0,0,0,0,0,0,0,0,0,0,0]} 1. d4 {[%emt 0:00:02]} d5 {[%emt 0:01:18]} 2. c4 {[%emt 0:00:05]} e6 {[%emt 0:00:07]} 3. Nc3 {[%emt 0:00:03]} Nf6 {[%emt 0:00:06]} 4. cxd5 {[%emt 0:00:04]} exd5 {[%emt 0:00:05]} 5. Bg5 {[%emt 0:00:05]} c6 {[%emt 0:00:32]} 6. Qc2 {[%emt 0:00:06]} Bd6 {[%emt 0:03:49]} 7. e3 {[%emt 0:00:42]} O-O {[%emt 0:00:14] D36: Queen's Gambit Declined: Exchange Variation: Main line (5 Bg5 c6 6 Qc2).} 8. Bd3 {[%emt 0:01:41][%cal Od3h7] Bxh7+! is the strong threat.} h6 {[%emt 0:00:07]} 9. Bh4 {[%emt 0:00:07]} Na6 {[%emt 0:00:05]} 10. Bxa6 {[%emt 0:08:21]} bxa6 {[%emt 0:00:03]} 11. Nf3 {[%emt 0:01:19] [#]} Be6 $146 {[%emt 0:02:09]} ({Predecessor:} 11... Re8 12. Ne2 Bb4+ 13. Kf1 Bd7 14. Ne5 Be7 15. Nxc6 Rc8 16. Nxe7+ Qxe7 17. Nc3 g5 {½-½ (37) Villa Cerda,J-Owens,J (1300) ICCF email 2013}) 12. O-O {[%emt 0:01:55]} c5 {[%emt 0:00:41]} 13. dxc5 {[%emt 0:07:11]} Bxc5 {[%emt 0:00:05]} 14. Rad1 {[%emt 0:11:09][%cal Oc3d5]} Be7 {[%emt 0:06:24]} 15. Qa4 {[%emt 0:08:44] White has more active pieces. The black rooks are badly placed.} Qb6 {[%emt 0:14:50]} 16. Bxf6 {[%emt 0:01:53]} Bxf6 {[%emt 0:00:09]} 17. Nxd5 {[%emt 0:00:06]} Bxd5 {[%emt 0:00:02]} 18. Rxd5 {[%emt 0:00:07]} Qxb2 {[%emt 0:00:54]} 19. Qxa6 {[%emt 0:01:58]} Rfc8 {[%emt 0:00:15]} 20. h3 {[%emt 0:12:25]} Rc2 {[%emt 0:03:04]} 21. a4 {[%emt 0:02:51]} Qb6 {[%emt 0:00:58]} 22. Rd6 {[%emt 0:04:41]} Qc7 {[%emt 0:01:22]} 23. Nd4 {[%emt 0:06:29]} Bxd4 {[%emt 0:05:53]} 24. Rxd4 {[%emt 0:00:25][%cal Bd6d4,Bd4c4,Bc4c8][%mdl 32]} ({Of course not} 24. exd4 $6 Rc1 25. g3 Rb8 26. Rxc1 Qxc1+ 27. Qf1 Qa3 $11) 24... Rb8 {[%emt 0:06:21]} 25. Rfd1 {[%emt 0:04:36]} Ra2 {[%emt 0:00:49]} 26. Rc4 {[%emt 0:07:09] Against Qc2} Qb7 {[%emt 0:09:10]} 27. Qa5 {[%emt 0:00:02]} Qe7 {[%emt 0:03:21]} (27... Qb6 $16 {was worth a try.} 28. Qf5 a6) 28. Qf5 $1 $18 {[%emt 0:01:55]} Qe8 $2 {[%emt 0:07:09]} (28... Qf6 29. Qxf6 gxf6) 29. Rdc1 {[%emt 0:03:48]} (29. Rc7 $142) 29... Rd8 {[%emt 0:01:44]} 30. Rc8 {[%emt 0:02:21]} Ra1 {[%emt 0:01:53]} 31. Rxa1 {[%emt 0:00:42] Intending Rxd8 and mate.} Rxc8 $16 {[%emt 0:00:01][%mdl 4096] Endgame KQR-KQR} 32. Rd1 {[%emt 0:00:50]} Rc7 {[%emt 0:03:58] Inhibits Qd7.} (32... Rd8 $142 33. Rxd8 Qxd8) 33. a5 {[%emt 0:02:10][%cal Ba4a5,Ba5a6][%mdl 32]} Re7 {[%emt 0:00:28]} (33... Qe7 $16 {was called for.} 34. g4 g6) 34. Qc5 {[%emt 0:02:23]} (34. Rd6 $18) 34... Rd7 {[%emt 0:00:13] [#]} (34... Rb7 $16 35. Rd5 Qb8) 35. Rxd7 $1 $18 {[%emt 0:01:29]} Qxd7 {[%emt 0:00:01] [#] KQ-KQ} 36. a6 $1 {[%emt 0:00:04]} Kh7 {[%emt 0:01:06]} 37. Qd4 {[%emt 0:01:09]} (37. e4 $18) 37... Qe7 {[%emt 0:00:01]} 38. Qd5 {[%emt 0:00:48]} f6 {[%emt 0:03:24]} 39. Qd4 {[%emt 0:00:30]} Qc7 {[%emt 0:00:08]} 40. f4 {[%emt 0:01:36]} (40. Qe4+ $18 Kg8 41. Qd5+ Kf8 42. Qb7) 40... Kh8 {[%emt 0:00:18]} (40... h5 $1 $14) 41. Kh2 $16 {[%emt 0:00:05]} Kh7 {[%emt 0:00:04]} 42. Qe4+ {[%emt 0:00:03]} Kh8 {[%emt 0:00:05]} 43. Qd4 {[%emt 0:00:10]} Kh7 $1 {[%emt 0:00:05]} 44. Kg3 {[%emt 0:01:29]} Kh8 {[%emt 0:00:37]} 45. e4 {[%emt 0:01:35]} Qf7 {[%emt 0:01:01]} 46. Kh2 {[%emt 0:00:46]} (46. Qe3 $16) 46... Qc7 $1 $11 {[%emt 0:00:25]} 47. Kg3 {[%emt 0:00:08]} ({White should try} 47. Qf2 $11) 47... Qf7 $1 $16 {[%emt 0:00:02]} 48. Qc5 {[%emt 0:03:40] Against Qc7} Qd7 {[%emt 0:01:16]} 49. Kh2 {[%emt 0:00:55]} (49. Qe3 $16) 49... Qd2 $1 $11 {[%emt 0:01:13]} 50. Qc8+ {[%emt 0:00:55]} Kh7 {[%emt 0:00:02]} 51. Qf5+ {[%emt 0:00:01]} Kh8 {[%emt 0:00:30]} 52. Qc8+ {[%emt 0:00:05]} (52. e5 $14 fxe5 53. Qxe5 (53. fxe5 Qd5 $16)) 52... Kh7 {[%emt 0:00:05]} 53. Qf5+ {[%emt 0:00:05]} (53. Qg4 $11) 53... Kh8 $14 {[%emt 0:00:00]} 54. e5 {[%emt 0:00:07]} fxe5 {[%emt 0:02:45]} 55. fxe5 {[%emt 0:00:06]} (55. Qxe5 $14 {was preferrable.} Qf2 56. Qe8+ Kh7 57. Qe4+ Kg8 58. f5) 55... Qe2 $11 {[%emt 0:00:25] The position is equal.} 56. Qc8+ {[%emt 0:01:12]} Kh7 {[%emt 0:00:02]} 57. Qf5+ {[%emt 0:00:02]} Kh8 {[%emt 0:00:01]} 58. Qe6 {[%emt 0:02:54]} Qe4 {[%emt 0:00:43]} 59. Qc8+ {[%emt 0:00:10]} Kh7 {[%emt 0:00:01]} 60. Qc5 {[%emt 0:00:11]} Kg8 {[%emt 0:06:40]} 61. Qxa7 {[%emt 0:00:12]} Qxe5+ {[%emt 0:00:05]} 62. Kh1 {[%emt 0:00:25] And now Qg1 would win.} Qa1+ {[%emt 0:00:12]} 63. Kh2 {[%emt 0:00:06]} Qe5+ {[%emt 0:00:08]} 64. g3 {[%emt 0:00:11] aiming for Qf2.} Qe2+ {[%emt 0:00:15]} 65. Kg1 {[%emt 0:00:05] Strongly threatening Qb8+.} Qe1+ {[%emt 0:00:07]} 66. Kg2 {[%emt 0:00:05] Black must now prevent Qf2.} Qe2+ {[%emt 0:00:06]} 67. Kh1 {[%emt 0:00:14]} Qf1+ {[%emt 0:00:18]} 68. Kh2 {[%emt 0:00:03] Black defended with fortune.  Weighted Error Value: White=0.23 (precise) /Black=0.18 (very precise)} 1/2-1/2

[Event "Fall GM-C Norm Invitational 2022"]
[Site "Charlotte"]
[Date "2022.11.21"]
[Round "7"]
[White "Gedajlovic, Max"]
[Black "Wang, Tianqi"]
[Result "1-0"]
[ECO "E11"]
[WhiteElo "2317"]
[BlackElo "2428"]
[Annotator "TA"]
[PlyCount "63"]
[EventDate "2022.11.18"]
[EventType "tourn"]
[EventCountry "USA"]
[SourceTitle "playchess.com"]
[Source "ChessBase"]
[SourceQuality "1"]
[TimeControl "5400+30"]

{[%evp 11,63,10,16,20,20,18,20,19,39,27,55,41,41,44,47,50,95,83,87,74,145,96,83,54,206,117,179,78,193,82,363,374,387,349,384,364,547,519,562,553,536,527,947,934,1114,1093,1013,837,1289,1238,29978,10864,6629,4576]} 1. d4 {[%emt 0:00:04]} Nf6 {[%emt 0:08:34]} 2. c4 {[%emt 0:00:12]} e6 {[%emt 0:00:04]} 3. Nf3 {[%emt 0:00:10]} Bb4+ {[%emt 0:00:03]} 4. Bd2 {[%emt 0:00:29]} Qe7 {[%emt 0:00:05]} 5. e3 {[%emt 0:01:33]} Bxd2+ {[%emt 0:03:01]} 6. Qxd2 {[%emt 0:01:26]} d6 {[%emt 0:01:04]} 7. Nc3 {[%emt 0:02:59] E11: Bogo-Indian.} O-O {[%emt 0:00:14]} 8. Bd3 {[%emt 0:00:44]} e5 {[%emt 0:00:31] Strongly threatening ...e4.} 9. Bc2 {[%emt 0:00:20] The position is equal.} Bg4 {[%emt 0:05:05]} 10. h3 {[%emt 0:02:06] [#]} Be6 $146 {[%emt 0:11:47]} ({Predecessor:} 10... Bxf3 11. gxf3 Nc6 12. d5 Nb4 13. O-O-O Nxc2 14. Qxc2 Nd7 15. h4 Kh8 16. h5 Nc5 {0-1 (31) Yanchenko,R (2436)-Terry,R (2481) Chess.com INT 2017}) 11. b3 {[%emt 0:04:37]} exd4 {[%emt 0:11:39]} 12. Nxd4 {[%emt 0:00:26]} a5 {[%emt 0:00:31]} 13. O-O {[%emt 0:01:18]} Nbd7 {[%emt 0:01:58]} 14. f4 {[%emt 0:03:58] And now f5 would win. White is more active.} Nc5 {[%emt 0:00:30]} 15. e4 {[%emt 0:00:36]} a4 {[%emt 0:03:57]} (15... c6 $142) 16. Rae1 {[%emt 0:01:16]} (16. b4 $142 Ncd7 17. Qe2) 16... axb3 $16 {[%emt 0:03:48]} 17. axb3 {[%emt 0:00:06]} Rad8 $2 {[%emt 0:08:31]} (17... Rfe8 $14) 18. Qf2 {[%emt 0:07:45]} (18. Nd5 $18 Bxd5 19. exd5) 18... c6 {[%emt 0:03:18] [#]} (18... Rfe8 $16) 19. g4 {[%emt 0:07:20]} (19. Nf3 $1 $18) 19... Bc8 {[%emt 0:06:11]} (19... Rfe8 $16 {was necessary.}) 20. Nf3 {[%emt 0:14:38]} (20. b4 $18 {and White stays clearly on top.} Na6 21. g5) 20... Na6 {[%emt 0:07:47][%mdl 8192]} (20... Nfd7 $16 {keeps fighting.}) 21. Qh4 $18 {[%emt 0:02:21] Black must now prevent e5.} Nb4 {[%emt 0:00:50]} 22. Bb1 h6 {[%emt 0:04:25]} 23. g5 {[%emt 0:06:52][%cal Bg4g5,Bg5h6][%mdl 32]} Nd7 {[%emt 0:06:31] [#]} (23... Rfe8 $142 24. gxf6 Qxf6 25. Qxf6 gxf6) 24. Nd5 $1 {[%emt 0:03:30][%mdl 512]} cxd5 {[%emt 0:03:40]} 25. exd5 {[%emt 0:00:02]} Ne5 {[%emt 0:00:07]} 26. fxe5 {[%emt 0:00:13]} dxe5 {[%emt 0:00:44]} 27. Rxe5 {[%emt 0:01:38]} Qd6 {[%emt 0:00:23]} 28. gxh6 {[%emt 0:01:47]} g6 {[%emt 0:00:36]} 29. Rg5 {[%emt 0:06:08]} Qc5+ {[%emt 0:01:39]} 30. Kh1 {[%emt 0:00:53] White wants to mate with Ne5.} Rde8 {[%emt 0:00:51] [#]} 31. Qg3 {[%emt 0:01:52]} (31. Bxg6 $142 $1 fxg6 32. Rxg6+ Kh8 33. h7 Qe3 34. Rg8+ Rxg8 35. hxg8=N+ Kxg8 36. Rg1+ Qxg1+ 37. Kxg1) 31... Re7 {[%emt 0:05:56]} 32. d6 {[%emt 0:00:57] Weighted Error Value: White=0.21 (precise) /Black=0.85} 1-0

[Event "Fall GM-C Norm Invitational 2022"]
[Site "Charlotte"]
[Date "2022.11.21"]
[Round "7"]
[White "Slade, Theodore"]
[Black "Rodriguez Garcia, Victor"]
[Result "0-1"]
[ECO "A80"]
[WhiteElo "2028"]
[BlackElo "2350"]
[Annotator "TA"]
[PlyCount "94"]
[EventDate "2022.11.18"]
[EventType "tourn"]
[EventCountry "USA"]
[SourceTitle "playchess.com"]
[Source "ChessBase"]
[SourceQuality "1"]
[TimeControl "5400+30"]

{[%evp 10,94,17,0,3,14,14,0,0,-9,14,-13,-8,-14,0,-15,-20,-9,-9,-4,-5,-9,-7,0,0,-25,0,0,0,-15,0,-93,-93,-93,-93,-94,-94,-102,-97,-92,45,-118,-86,-86,-86,-95,-93,-189,-111,-145,-95,-112,-104,-122,-112,-188,-179,-198,-162,-195,-173,-189,-122,-190,-198,-195,-203,-250,-245,-375,-366,-762,-237,-947,-940,-1487,-1471,-1549,-1416,-1384,-1383,-29975,-29976,-29984,-29985,-29989,-29990]} 1. d4 {[%emt 0:00:02]} f5 {[%emt 0:00:04]} 2. Nc3 {[%emt 0:03:00]} Nf6 {[%emt 0:00:30]} 3. Bg5 {[%emt 0:00:12]} d5 {[%emt 0:00:26]} 4. Bxf6 {[%emt 0:00:15]} exf6 {[%emt 0:00:10]} 5. e3 {[%emt 0:02:00]} Be6 {[%emt 0:00:45]} 6. Bd3 {[%emt 0:01:14]} Qd7 {[%emt 0:00:38] A80: Dutch Defence: Unusual White second moves.} 7. Nge2 {[%emt 0:03:28][%cal Bg1e2,Be2f4,Bf4d3,Bd3c5][%mdl 32]} Nc6 {[%emt 0:05:23]} 8. Nf4 {[%emt 0:04:20]} Bf7 {[%emt 0:01:32] Against Qh5. The position is equal.} 9. a3 {[%emt 0:04:08]} g6 {[%emt 0:01:11]} 10. Qf3 {[%emt 0:02:45][%cal Rf4d5]} O-O-O {[%emt 0:00:09]} 11. Bb5 {[%emt 0:13:16][%cal Bd3b5,Bb5a4,Ba4b3][%mdl 32]} Kb8 {[%emt 0:01:27]} 12. Nd3 {[%emt 0:05:06][%cal Od3b4]} a6 {[%emt 0:06:57]} 13. Ba4 {[%emt 0:01:47]} Qe6 {[%emt 0:18:14]} 14. O-O {[%emt 0:06:45] [#]} Na5 $146 {[%emt 0:02:50]} ({Predecessor:} 14... Na7 15. b4 b6 16. Nf4 Qd6 17. Bb3 g5 18. Nfxd5 Be6 19. Rfb1 Nc8 20. b5 a5 {1-0 (36) Patino Andreu,J-Mate Adan,R Ponferrada 1997}) 15. b4 {[%emt 0:03:36]} Nc4 {[%emt 0:00:11]} 16. Qe2 {[%emt 0:03:26] Against Nd2} Bd6 {[%emt 0:08:58]} 17. Nc5 {[%emt 0:05:58]} Qe7 {[%emt 0:00:36]} 18. Bb3 {[%emt 0:01:32]} c6 {[%emt 0:01:07]} 19. a4 {[%emt 0:02:05]} Rhe8 {[%emt 0:04:06]} 20. b5 {[%emt 0:06:34]} (20. Rfb1 $11) 20... Bxc5 $17 {[%emt 0:02:23]} 21. dxc5 {[%emt 0:00:17]} Qxc5 {[%emt 0:03:37] Strongly threatening ...d4.} 22. Bxc4 {[%emt 0:02:30]} Qxc4 {[%emt 0:02:46]} 23. Qxc4 {[%emt 0:00:07]} dxc4 {[%emt 0:00:04]} 24. bxc6 {[%emt 0:04:51]} b6 {[%emt 0:01:13]} (24... bxc6 $17 25. Rfb1+ Kc7) 25. Ne2 $2 {[%emt 0:02:10]} (25. a5 $1 $14 {is the one way to stay ahead.} b5 26. Na2) 25... Kc7 {[%emt 0:00:51]} 26. Nd4 {[%emt 0:00:11]} Bd5 {[%emt 0:00:42]} 27. Rfd1 {[%emt 0:07:25]} Bxc6 {[%emt 0:00:41][%cal Of5f4]} 28. Rd2 {[%emt 0:00:27]} (28. g3 $17) 28... Rd7 {[%emt 0:25:28]} (28... f4 $1 $19 29. exf4 Bxa4 $1) 29. c3 {[%emt 0:00:40]} Be4 {[%emt 0:00:35] Black is more active.} ({Black should try} 29... f4 $1 30. exf4 Bxa4 $1) 30. Rb2 {[%emt 0:02:17]} Bd3 {[%emt 0:00:23]} 31. h3 {[%emt 0:01:52]} Rde7 {[%emt 0:01:13][%cal Of5f4] White must now prevent ...f4!} 32. Nf3 {[%emt 0:02:43] [#]} (32. g3 $17) 32... g5 $1 $19 {[%emt 0:01:03]} 33. Raa2 {[%emt 0:02:49]} Rd8 {[%emt 0:04:00]} 34. Rb4 {[%emt 0:00:49]} Rd6 {[%emt 0:00:11]} 35. Kh2 {[%emt 0:01:39]} h6 {[%emt 0:02:08]} (35... f4 $19 36. exf4 gxf4) 36. Rd2 {[%emt 0:00:19]} (36. Kg3 $17 {was called for.}) 36... f4 {[%emt 0:01:12]} 37. exf4 {[%emt 0:00:15]} gxf4 {[%emt 0:00:13]} 38. Ra2 {[%emt 0:01:53]} Re2 {[%emt 0:00:15]} 39. Rxe2 {[%emt 0:00:24]} (39. Rbb2 $142 Rxb2 40. Rxb2) 39... Bxe2 {[%emt 0:00:02][%mdl 4096] Endgame KRB-KRN} 40. Nd4 $2 {[%emt 0:00:49] [#]} (40. Nh4) 40... Bd3 $2 {[%emt 0:00:31]} (40... Rxd4 $1 {[%mdl 512]} 41. cxd4 Bd3) 41. f3 $2 {[%emt 0:01:20] [#]} (41. Nf3) 41... Rxd4 $1 {[%emt 0:02:16][%mdl 512]} 42. cxd4 {[%emt 0:00:06] KR-KB} (42. g3 Rd7) 42... c3 {[%emt 0:00:04][%cal Bc4c3,Bc3c2][%mdl 32]} 43. Rb3 {[%emt 0:00:08]} c2 {[%emt 0:00:06]} 44. Rc3+ {[%emt 0:00:11]} Kd6 {[%emt 0:00:04] aiming for ...Kd5.} 45. Kg1 {[%emt 0:00:34]} Kd5 {[%emt 0:00:01] Black mates.} 46. Kf2 {[%emt 0:00:13]} Kxd4 {[%emt 0:00:07]} 47. Rc6 {[%emt 0:01:00]} Bc4 {[%emt 0:00:08] Weighted Error Value: White=0.72/Black=0.27 (precise)} 0-1

[Event "Fall GM-C Norm Invitational 2022"]
[Site "Charlotte"]
[Date "2022.11.21"]
[Round "8"]
[White "Macieja, Bartlomiej"]
[Black "Sethuraman, Sandeep"]
[Result "1-0"]
[ECO "A28"]
[WhiteElo "2514"]
[BlackElo "2371"]
[Annotator "TA"]
[PlyCount "158"]
[EventDate "2022.11.18"]
[EventType "tourn"]
[EventCountry "USA"]
[SourceTitle "playchess.com"]
[Source "ChessBase"]
[SourceQuality "1"]
[TimeControl "5400+30"]

{[%evp 12,158,11,8,4,0,8,0,21,-2,62,39,37,30,20,37,28,-33,0,0,0,0,25,0,0,0,41,54,45,28,83,0,0,0,0,0,0,0,0,-22,-25,-34,-26,-38,-31,-33,-26,-35,0,-21,6,1,7,0,145,127,157,158,101,0,140,131,131,106,422,422,700,692,643,606,772,772,754,739,941,922,1023,687,416,0,966,889,975,946,1121,1134,872,885,762,785,768,729,651,572,691,629,1357,1328,12841,12841,12843,12843,12844,12843,12844,12844,12845,12844,12845,12844,12845,12845,12845,12845,12845,12845,12845,12846,12846,12846,12846,12846,12846,12845,12846,12844,12848,12848,12850,27996,27997,27997,27999,27997,27998,27997,27996,27996,27997,27995,27996,27996,27995,27995,27999,27995,27996,27996,27996]} 1. c4 {[%emt 0:00:35]} Nf6 {[%emt 0:00:13]} 2. Nc3 {[%emt 0:00:19]} e5 {[%emt 0:00:05]} 3. Nf3 {[%emt 0:00:03]} Nc6 {[%emt 0:00:04]} 4. e3 {[%emt 0:00:02]} Bb4 {[%emt 0:00:13]} 5. Qc2 {[%emt 0:00:03]} O-O {[%emt 0:00:10]} 6. Nd5 {[%emt 0:00:15]} Re8 {[%emt 0:00:06]} 7. Qf5 {[%emt 0:01:07]} d6 {[%emt 0:00:07] A28: English Opening: Four Knights Variation.} 8. Nxf6+ $1 {[%emt 0:00:10]} gxf6 {[%emt 0:00:04]} 9. Qc2 {[%emt 0:20:08]} e4 {[%emt 0:10:25] The position is equal.} 10. a3 {[%emt 0:03:31] [#] Nd4 is the strong threat.} Bc5 $146 {[%emt 0:05:01] Prevents Nd4.} (10... exf3 $11 11. axb4 Nxb4) ({Predecessor:} 10... exf3 11. axb4 fxg2 12. Rg1 Nxb4 13. Qc3 a5 14. Rxg2+ Kf8 15. d3 Qe7 16. e4 Qe5 {½-½ (46) Spagnoli,L-Petukhov,V (2208) ICCF email 2013}) 11. Nh4 {[%emt 0:08:28]} d5 {[%emt 0:05:00]} 12. b4 {[%emt 0:02:50]} Bf8 {[%emt 0:04:03]} 13. cxd5 {[%emt 0:11:57]} Qxd5 {[%emt 0:00:02]} 14. Bc4 {[%emt 0:01:59]} (14. Bb2 $11) 14... Qh5 {[%emt 0:02:37]} (14... Qg5 $15 15. g3 Bh3) 15. g3 $1 $11 {[%emt 0:00:38]} a5 {[%emt 0:07:30]} 16. b5 {[%emt 0:17:15]} Ne5 {[%emt 0:00:59]} 17. Qxe4 {[%emt 0:00:02]} (17. Bb2 $5 {[%cal Rc2e4]}) 17... Bg4 {[%emt 0:04:29] Against Be2} 18. Qc2 $1 {[%emt 0:00:02]} Nf3+ {[%emt 0:06:37]} 19. Nxf3 {[%emt 0:02:45]} Bxf3 {[%emt 0:00:02]} 20. Rf1 {[%emt 0:00:05]} c6 {[%emt 0:03:32]} (20... Rad8 $11) 21. b6 {[%emt 0:04:57]} ({White should try} 21. bxc6 $16 Bxc6 22. Bb2) 21... Bg2 $36 {[%emt 0:05:33][%mdl 2048] Black is more active.} 22. Bb2 {[%emt 0:01:47]} Bxf1 {[%emt 0:00:15]} 23. Kxf1 {[%emt 0:09:05]} Qxh2 {[%emt 0:00:57]} 24. Qf5 {[%emt 0:01:05]} Qh6 {[%emt 0:05:59]} 25. Qxf6 {[%emt 0:06:57] The board is on fire.} Qxf6 {[%emt 0:00:06]} 26. Bxf6 {[%emt 0:00:04] This bishop pair is nice.} Bg7 {[%emt 0:02:22]} 27. Bxg7 {[%emt 0:00:03]} Kxg7 {[%emt 0:00:02][%mdl 4096] Endgame KRR-KRB} 28. Ke2 {[%emt 0:01:23]} Rad8 {[%emt 0:02:10]} 29. Rh1 {[%emt 0:00:15]} Re5 {[%emt 0:05:19]} 30. a4 {[%emt 0:02:27]} (30. f4 $5 {[%cal Rf4e5]} Rc5 31. d3 $11) 30... Rd6 {[%emt 0:00:45]} 31. f4 {[%emt 0:02:05]} Rc5 {[%emt 0:02:32]} 32. d3 {[%emt 0:00:01]} Rg6 {[%emt 0:07:18]} (32... Rh6 $1 $11 {keeps the balance.} 33. Rxh6 Kxh6) 33. Kf3 $16 {[%emt 0:00:14][%mdl 1024] White has strong compensation. White is more active.} Rd6 {[%emt 0:02:16] [#]} 34. g4 $1 {[%emt 0:01:26] Against h5} h6 {[%emt 0:01:12]} 35. Ke4 {[%emt 0:00:35]} ({Better is} 35. Rh2 $16) 35... Rd7 {[%emt 0:05:44] Black is now going downhill.} (35... h5 $1 $11) 36. Rc1 {[%emt 0:03:20] Threatens to win with d4.} h5 {[%emt 0:00:04]} 37. g5 {[%emt 0:00:26] Strongly threatening d4.} Re7+ $2 {[%emt 0:00:58][%mdl 8192] [#]} (37... f5+ $16 38. gxf6+ Kxf6) 38. Kf3 $1 $18 {[%emt 0:00:13]} f6 {[%emt 0:06:20]} (38... Re8 $142 39. d4 Rxc4 40. Rxc4 h4) 39. gxf6+ {[%emt 0:00:02]} Kxf6 {[%emt 0:00:05]} 40. d4 {[%emt 0:00:02]} Rxc4 {[%emt 0:00:24]} 41. Rxc4 {[%emt 0:00:00] KR-KR} h4 {[%emt 0:00:25]} 42. Rc2 {[%emt 0:01:03]} Rg7 {[%emt 0:00:18]} 43. Rh2 {[%emt 0:01:34]} Rh7 {[%emt 0:00:41]} 44. Kg4 {[%emt 0:00:18]} Rg7+ {[%emt 0:00:03]} 45. Kf3 {[%emt 0:00:06]} (45. Kxh4 $142 Rg1 46. Kh3) 45... Rh7 $1 {[%emt 0:00:03]} 46. e4 {[%emt 0:00:44]} h3 {[%emt 0:00:43]} 47. Kg3 {[%emt 0:00:57]} Rd7 {[%emt 0:00:16]} 48. Rxh3 {[%emt 0:00:33]} Rxd4 {[%emt 0:00:04]} 49. Kf3 {[%emt 0:00:29]} Rb4 {[%emt 0:00:30]} 50. Rh5 {[%emt 0:00:25]} Rxb6 {[%emt 0:01:31]} 51. Rf5+ {[%emt 0:00:32]} Kg6 {[%emt 0:00:52]} 52. Rxa5 {[%emt 0:00:09]} Rb4 {[%emt 0:00:04]} 53. Ra8 {[%emt 0:00:56]} c5 {[%emt 0:00:01]} 54. a5 {[%emt 0:00:03] Black must now prevent a6.} c4 {[%emt 0:01:02]} 55. a6 {[%emt 0:00:01]} bxa6 {[%emt 0:01:10]} 56. Rxa6+ {[%emt 0:00:01]} Kh5 {[%emt 0:00:01]} 57. f5 {[%emt 0:01:55]} Rb1 {[%emt 0:00:56]} 58. Rc6 {[%emt 0:00:02]} Kg5 {[%emt 0:00:35]} 59. Rg6+ {[%emt 0:00:36]} Kh5 {[%emt 0:00:01]} 60. Kf4 {[%emt 0:00:17]} c3 {[%emt 0:00:41]} 61. Rc6 {[%emt 0:00:04]} Rc1 {[%emt 0:00:07]} 62. Rc8 {[%emt 0:01:13][%cal Rc8h8]} Kh6 {[%emt 0:00:03]} 63. Ke5 {[%emt 0:00:12]} Kg5 {[%emt 0:00:54]} 64. Rg8+ {[%emt 0:00:53]} Kh5 {[%emt 0:00:14]} 65. Rg3 {[%emt 0:00:42]} Kh4 {[%emt 0:01:01]} 66. Rg2 {[%emt 0:00:16]} Kh3 {[%emt 0:01:27]} 67. Ra2 {[%emt 0:00:34]} Kg4 {[%emt 0:00:29]} 68. Kf6 {[%emt 0:00:10]} c2 {[%emt 0:01:21]} 69. e5 {[%emt 0:00:04][%cal Be4e5,Be5e6,Be6e7][%mdl 32]} Rf1 {[%emt 0:00:36]} 70. Rxc2 {[%emt 0:00:04]} Rxf5+ {[%emt 0:00:03] White mates.} 71. Ke6 {[%emt 0:00:04]} Rh5 {[%emt 0:00:22]} 72. Rf2 {[%emt 0:01:20]} Rh8 {[%emt 0:00:59]} 73. Kd7 {[%emt 0:01:03]} Ra8 {[%emt 0:00:15]} 74. e6 {[%emt 0:00:04]} Ra7+ {[%emt 0:00:07]} 75. Kd6 {[%emt 0:00:29]} Ra6+ {[%emt 0:00:34]} 76. Ke5 {[%emt 0:00:19]} Kg5 {[%emt 0:00:33]} 77. e7 {[%emt 0:00:33]} Ra1 {[%emt 0:00:06]} 78. Rf8 {[%emt 0:00:37]} Re1+ {[%emt 0:00:14]} 79. Kd6 {[%emt 0:00:01]} Kh6 {[%emt 0:00:18] Weighted Error Value: White=0.28 (precise) /Black=0.48} 1-0